[Event "Titled Tuesday Blitz August 3 2021"]
[White "Alavi, Sayed Javad"]
[Black "Trent, Lawrence"]
[WhiteFideId "12500607"]
[BlackFideId "408638"]
[WhiteElo "2495"]
[BlackElo "2474"]
[Result "1-0"]
[Round "11"]
[TimeControl "180+1"]
[Date "2021.08.03"]
[WhiteClock "0:00:20"]
[BlackClock "0:00:55"]

1. e4 {[%clk 0:03:00]}  e6 {[%clk 0:02:59]} 2. d4 {[%clk 0:02:58]}  d5 {[%clk 0:02:58]} 3. exd5 {[%clk 0:02:58]}  exd5 {[%clk 0:02:58]} 4. Nf3 {[%clk 0:02:59]}  Bd6 {[%clk 0:02:58]} 5. c4 {[%clk 0:02:55]}  c6 {[%clk 0:02:52]} 6. Nc3 {[%clk 0:02:54]}  Ne7 {[%clk 0:02:52]} 7. c5 {[%clk 0:02:46]}  Bc7 {[%clk 0:02:52]} 8. Bd3 {[%clk 0:02:42]}  O-O {[%clk 0:02:50]} 9. O-O {[%clk 0:02:41]}  Nd7 {[%clk 0:02:45]} 10. Bg5 {[%clk 0:02:36]}  f6 {[%clk 0:02:40]} 11. Bd2 {[%clk 0:02:25]}  Rf7 {[%clk 0:02:37]} 12. Qc2 {[%clk 0:02:22]}  Nf8 {[%clk 0:02:37]} 13. h3 {[%clk 0:02:23]}  Neg6 {[%clk 0:02:33]} 14. Rae1 {[%clk 0:01:52]}  Bb8 {[%clk 0:02:24]} 15. b4 {[%clk 0:01:45]}  Qc7 {[%clk 0:02:21]} 16. Ne2 {[%clk 0:01:04]}  b5 {[%clk 0:01:45]} 17. Ng3 {[%clk 0:01:00]}  a5 {[%clk 0:01:43]} 18. bxa5 {[%clk 0:00:58]}  Nf4 {[%clk 0:01:41]} 19. Bf5 {[%clk 0:00:58]}  g6 {[%clk 0:01:36]} 20. Bxc8 {[%clk 0:00:57]}  Qxc8 {[%clk 0:01:35]} 21. a4 {[%clk 0:00:47]}  bxa4 {[%clk 0:01:22]} 22. Qxa4 {[%clk 0:00:48]}  Nxh3+ {[%clk 0:01:19]} 23. gxh3 {[%clk 0:00:49]}  Qxh3 {[%clk 0:01:18]} 24. Qxc6 {[%clk 0:00:28]}  Raa7 {[%clk 0:01:10]} 25. Qxd5 {[%clk 0:00:26]}  Bxg3 {[%clk 0:01:08]} 26. fxg3 {[%clk 0:00:27]}  Qxg3+ {[%clk 0:01:04]} 27. Kh1 {[%clk 0:00:27]}  Rd7 {[%clk 0:01:02]} 28. Qe4 {[%clk 0:00:26]}  Rfe7 {[%clk 0:01:01]} 29. Qh4 {[%clk 0:00:23]}  Qxh4+ {[%clk 0:00:59]} 30. Nxh4 {[%clk 0:00:24]}  Rxe1 {[%clk 0:00:57]} 31. Bxe1 {[%clk 0:00:25]}  Rxd4 {[%clk 0:00:58]} 32. Rxf6 {[%clk 0:00:24]}  Nd7 {[%clk 0:00:57]} 33. Rd6 {[%clk 0:00:22]}  Rxd6 {[%clk 0:00:57]} 34. cxd6 {[%clk 0:00:23]}  Kf7 {[%clk 0:00:57]} 35. a6 {[%clk 0:00:23]}  Ke6 {[%clk 0:00:55]} 36. Bf2 {[%clk 0:00:20]} 1-0


[Site "https://www.chess.com"]

[Event "Titled Tuesday Blitz August 3 2021"]
[White "Aldokhin, Ivan"]
[Black "Nguyen Hong Nhung"]
[WhiteFideId "24115720"]
[BlackFideId "12412201"]
[WhiteElo "2306"]
[BlackElo "1661"]
[Result "1-0"]
[Round "11"]
[TimeControl "180+1"]
[Date "2021.08.03"]
[WhiteClock "0:00:42"]
[BlackClock "0:00:01"]

1. e4 {[%clk 0:03:00]}  c5 {[%clk 0:03:00]} 2. Nf3 {[%clk 0:03:00]}  e6 {[%clk 0:03:00]} 3. d4 {[%clk 0:03:00]}  cxd4 {[%clk 0:03:01]} 4. Nxd4 {[%clk 0:03:00]}  Nc6 {[%clk 0:03:01]} 5. Nxc6 {[%clk 0:02:59]}  bxc6 {[%clk 0:03:02]} 6. Bd3 {[%clk 0:03:00]}  d5 {[%clk 0:03:01]} 7. O-O {[%clk 0:03:01]}  Nf6 {[%clk 0:03:01]} 8. Nd2 {[%clk 0:03:00]}  Bd6 {[%clk 0:03:01]} 9. Qe2 {[%clk 0:02:59]}  Qc7 {[%clk 0:02:53]} 10. h3 {[%clk 0:03:00]}  O-O {[%clk 0:02:51]} 11. c4 {[%clk 0:02:59]}  Re8 {[%clk 0:02:40]} 12. b3 {[%clk 0:02:49]}  e5 {[%clk 0:02:34]} 13. cxd5 {[%clk 0:02:44]}  cxd5 {[%clk 0:02:35]} 14. exd5 {[%clk 0:02:44]}  Nxd5 {[%clk 0:02:35]} 15. Qe4 {[%clk 0:02:35]}  Bb7 {[%clk 0:01:17]} 16. Qxh7+ {[%clk 0:02:21]}  Kf8 {[%clk 0:01:17]} 17. Ne4 {[%clk 0:02:08]}  Ke7 {[%clk 0:00:48]} 18. Bg5+ {[%clk 0:01:53]}  Ke6 {[%clk 0:00:35]} 19. Rad1 {[%clk 0:01:12]}  Rh8 {[%clk 0:00:10]} 20. Ng3 {[%clk 0:00:48]}  g6 {[%clk 0:00:01]} 21. Bf5+ {[%clk 0:00:42]}  gxf5 {[%clk 0:00:01]} 22. Qxf5# {[%clk 0:00:42]} 1-0


[Site "https://www.chess.com"]

[Event "Titled Tuesday Blitz August 3 2021"]
[White "Ambartsumova, Karina"]
[Black "Timmermans, Mark"]
[WhiteFideId "4166299"]
[BlackFideId "1026399"]
[WhiteElo "2262"]
[BlackElo "2460"]
[Result "0-1"]
[Round "11"]
[TimeControl "180+1"]
[Date "2021.08.03"]
[WhiteClock "0:00:16"]
[BlackClock "0:00:17"]

1. c4 {[%clk 0:03:00]}  Nf6 {[%clk 0:02:52]} 2. Nc3 {[%clk 0:02:59]}  e5 {[%clk 0:02:41]} 3. Nf3 {[%clk 0:02:58]}  Nc6 {[%clk 0:02:40]} 4. a3 {[%clk 0:02:59]}  d5 {[%clk 0:02:37]} 5. cxd5 {[%clk 0:03:00]}  Nxd5 {[%clk 0:02:37]} 6. Qc2 {[%clk 0:03:00]}  Be7 {[%clk 0:02:30]} 7. e4 {[%clk 0:03:00]}  Nf4 {[%clk 0:02:29]} 8. d4 {[%clk 0:02:57]}  exd4 {[%clk 0:02:26]} 9. Bxf4 {[%clk 0:02:53]}  dxc3 {[%clk 0:02:27]} 10. Rd1 {[%clk 0:02:43]}  Bd7 {[%clk 0:02:27]} 11. Qxc3 {[%clk 0:02:42]}  O-O {[%clk 0:02:25]} 12. Be2 {[%clk 0:02:37]}  Bf6 {[%clk 0:02:10]} 13. e5 {[%clk 0:02:17]}  Be7 {[%clk 0:02:09]} 14. O-O {[%clk 0:02:16]}  Qc8 {[%clk 0:01:51]} 15. h3 {[%clk 0:02:08]}  a6 {[%clk 0:01:50]} 16. Bc4 {[%clk 0:02:02]}  Be6 {[%clk 0:01:50]} 17. Rd2 {[%clk 0:01:51]}  Rd8 {[%clk 0:01:46]} 18. Rfd1 {[%clk 0:01:51]}  Rxd2 {[%clk 0:01:45]} 19. Rxd2 {[%clk 0:01:51]}  Bxc4 {[%clk 0:01:38]} 20. Qxc4 {[%clk 0:01:52]}  Qe8 {[%clk 0:01:38]} 21. e6 {[%clk 0:01:49]}  Bf6 {[%clk 0:01:36]} 22. exf7+ {[%clk 0:01:29]}  Qxf7 {[%clk 0:01:37]} 23. Qxf7+ {[%clk 0:01:22]}  Kxf7 {[%clk 0:01:38]} 24. Bxc7 {[%clk 0:01:19]}  Rc8 {[%clk 0:01:38]} 25. Bf4 {[%clk 0:01:18]}  h6 {[%clk 0:01:34]} 26. Rd7+ {[%clk 0:01:17]}  Ke6 {[%clk 0:01:33]} 27. Rxb7 {[%clk 0:01:17]}  Na5 {[%clk 0:01:33]} 28. Rb6+ {[%clk 0:01:16]}  Rc6 {[%clk 0:01:30]} 29. Rxc6+ {[%clk 0:01:12]}  Nxc6 {[%clk 0:01:31]} 30. b3 {[%clk 0:00:51]}  Kd5 {[%clk 0:01:31]} 31. Bd2 {[%clk 0:00:39]}  Ke4 {[%clk 0:01:29]} 32. Kf1 {[%clk 0:00:37]}  Kd3 {[%clk 0:01:28]} 33. Bf4 {[%clk 0:00:32]}  Kc2 {[%clk 0:01:24]} 34. Nd2 {[%clk 0:00:30]}  Bc3 {[%clk 0:01:18]} 35. Ne4 {[%clk 0:00:20]}  Bb2 {[%clk 0:01:19]} 36. a4 {[%clk 0:00:16]}  a5 {[%clk 0:01:15]} 37. Nc5 {[%clk 0:00:14]}  Ba3 {[%clk 0:01:15]} 38. Ne6 {[%clk 0:00:14]}  g5 {[%clk 0:01:13]} 39. Bc7 {[%clk 0:00:14]}  Kxb3 {[%clk 0:01:13]} 40. Ke2 {[%clk 0:00:10]}  Kxa4 {[%clk 0:01:13]} 41. g3 {[%clk 0:00:11]}  Kb3 {[%clk 0:01:09]} 42. f4 {[%clk 0:00:11]}  a4 {[%clk 0:01:03]} 43. f5 {[%clk 0:00:11]}  Be7 {[%clk 0:01:02]} 44. Bb6 {[%clk 0:00:01]}  Bf6 {[%clk 0:00:53]} 45. Nc5+ {[%clk 0:00:01]}  Kb4 {[%clk 0:00:51]} 46. Nxa4 {[%clk 0:00:02]}  Kxa4 {[%clk 0:00:50]} 47. Kf3 {[%clk 0:00:03]}  Kb5 {[%clk 0:00:47]} 48. Be3 {[%clk 0:00:02]}  h5 {[%clk 0:00:41]} 49. h4 {[%clk 0:00:02]}  gxh4 {[%clk 0:00:41]} 50. gxh4 {[%clk 0:00:03]}  Bxh4 {[%clk 0:00:39]} 51. Bf4 {[%clk 0:00:03]}  Kc4 {[%clk 0:00:38]} 52. Ke4 {[%clk 0:00:04]}  Ne7 {[%clk 0:00:32]} 53. Bh2 {[%clk 0:00:05]}  Bf6 {[%clk 0:00:28]} 54. Bf4 {[%clk 0:00:05]}  Nd5 {[%clk 0:00:24]} 55. Bh2 {[%clk 0:00:05]}  Nc3+ {[%clk 0:00:23]} 56. Kf4 {[%clk 0:00:05]}  Kd5 {[%clk 0:00:21]} 57. Kf3 {[%clk 0:00:06]}  Ne4 {[%clk 0:00:17]} 58. Kg2 {[%clk 0:00:05]}  Be5 {[%clk 0:00:16]} 59. Bg1 {[%clk 0:00:05]}  Bf4 {[%clk 0:00:16]} 60. Kh3 {[%clk 0:00:06]}  Bg5 {[%clk 0:00:15]} 61. Bh2 {[%clk 0:00:06]}  Nf6 {[%clk 0:00:14]} 62. Bg3 {[%clk 0:00:06]}  Ke4 {[%clk 0:00:14]} 63. Bh2 {[%clk 0:00:06]}  Kxf5 {[%clk 0:00:14]} 64. Bg3 {[%clk 0:00:07]}  Ne4 {[%clk 0:00:14]} 65. Bh2 {[%clk 0:00:07]}  Bf4 {[%clk 0:00:13]} 66. Bg1 {[%clk 0:00:07]}  Bg3 {[%clk 0:00:12]} 67. Be3 {[%clk 0:00:07]}  h4 {[%clk 0:00:11]} 68. Bc1 {[%clk 0:00:08]}  Nf2+ {[%clk 0:00:10]} 69. Kg2 {[%clk 0:00:08]}  Kg4 {[%clk 0:00:11]} 70. Be3 {[%clk 0:00:08]}  h3+ {[%clk 0:00:11]} 71. Kf1 {[%clk 0:00:08]}  Ne4 {[%clk 0:00:12]} 72. Bg1 {[%clk 0:00:08]}  h2 {[%clk 0:00:11]} 73. Bxh2 {[%clk 0:00:09]}  Bxh2 {[%clk 0:00:12]} 74. Kg2 {[%clk 0:00:10]}  Bf4 {[%clk 0:00:13]} 75. Kf1 {[%clk 0:00:10]}  Kf3 {[%clk 0:00:11]} 76. Ke1 {[%clk 0:00:10]}  Nf2 {[%clk 0:00:10]} 77. Kf1 {[%clk 0:00:10]}  Bh2 {[%clk 0:00:10]} 78. Ke1 {[%clk 0:00:10]}  Ne4 {[%clk 0:00:11]} 79. Kd1 {[%clk 0:00:10]}  Ke3 {[%clk 0:00:11]} 80. Kc2 {[%clk 0:00:11]}  Nd2 {[%clk 0:00:12]} 81. Kc3 {[%clk 0:00:11]}  Bd6 {[%clk 0:00:12]} 82. Kc2 {[%clk 0:00:11]}  Be5 {[%clk 0:00:13]} 83. Kd1 {[%clk 0:00:11]}  Kd3 {[%clk 0:00:13]} 84. Ke1 {[%clk 0:00:12]}  Bg3+ {[%clk 0:00:14]} 85. Kd1 {[%clk 0:00:12]}  Bh4 {[%clk 0:00:15]} 86. Kc1 {[%clk 0:00:12]}  Nc4 {[%clk 0:00:15]} 87. Kd1 {[%clk 0:00:13]}  Nb2+ {[%clk 0:00:15]} 88. Kc1 {[%clk 0:00:13]}  Kc3 {[%clk 0:00:16]} 89. Kb1 {[%clk 0:00:13]}  Kb3 {[%clk 0:00:17]} 90. Kc1 {[%clk 0:00:14]}  Bg5+ {[%clk 0:00:18]} 91. Kb1 {[%clk 0:00:14]}  Bf4 {[%clk 0:00:15]} 92. Ka1 {[%clk 0:00:14]}  Nc4 {[%clk 0:00:16]} 93. Kb1 {[%clk 0:00:15]}  Na3+ {[%clk 0:00:16]} 94. Ka1 {[%clk 0:00:16]}  Be5# {[%clk 0:00:17]} 0-1


[Site "https://www.chess.com"]

[Event "Titled Tuesday Blitz August 3 2021"]
[White "Andreikin, Dmitry"]
[Black "Quparadze, Giga"]
[WhiteFideId "4158814"]
[BlackFideId "13602250"]
[WhiteElo "2782"]
[BlackElo "2658"]
[Result "1-0"]
[Round "11"]
[TimeControl "180+1"]
[Date "2021.08.03"]
[WhiteClock "0:00:08"]
[BlackClock "0:00:11"]

1. Nf3 {[%clk 0:03:00]}  c5 {[%clk 0:02:59]} 2. c4 {[%clk 0:03:00]}  Nc6 {[%clk 0:02:59]} 3. d4 {[%clk 0:03:00]}  cxd4 {[%clk 0:02:58]} 4. Nxd4 {[%clk 0:03:00]}  g6 {[%clk 0:02:54]} 5. e4 {[%clk 0:03:00]}  Bg7 {[%clk 0:02:53]} 6. Be3 {[%clk 0:03:00]}  Nf6 {[%clk 0:02:48]} 7. Nc3 {[%clk 0:03:00]}  O-O {[%clk 0:02:48]} 8. Be2 {[%clk 0:02:59]}  b6 {[%clk 0:02:48]} 9. O-O {[%clk 0:02:58]}  Bb7 {[%clk 0:02:48]} 10. f3 {[%clk 0:02:56]}  Rc8 {[%clk 0:02:48]} 11. Qd2 {[%clk 0:02:56]}  d6 {[%clk 0:02:47]} 12. Rfd1 {[%clk 0:02:53]}  Nd7 {[%clk 0:02:47]} 13. Kh1 {[%clk 0:02:52]}  Nxd4 {[%clk 0:02:40]} 14. Bxd4 {[%clk 0:02:52]}  Bxd4 {[%clk 0:02:39]} 15. Qxd4 {[%clk 0:02:53]}  Qc7 {[%clk 0:02:40]} 16. Rac1 {[%clk 0:02:50]}  Qc5 {[%clk 0:02:39]} 17. Qd2 {[%clk 0:02:48]}  Qe5 {[%clk 0:02:39]} 18. b3 {[%clk 0:02:47]}  Nf6 {[%clk 0:02:31]} 19. Qe3 {[%clk 0:02:36]}  g5 {[%clk 0:02:20]} 20. Nb5 {[%clk 0:02:27]}  Qc5 {[%clk 0:02:00]} 21. Nd4 {[%clk 0:02:17]}  Kh8 {[%clk 0:01:44]} 22. b4 {[%clk 0:02:09]}  Qxb4 {[%clk 0:01:43]} 23. Nf5 {[%clk 0:02:09]}  Rc7 {[%clk 0:01:33]} 24. Qxg5 {[%clk 0:02:03]}  Rg8 {[%clk 0:01:32]} 25. Qh4 {[%clk 0:01:56]}  Qb2 {[%clk 0:01:32]} 26. Bf1 {[%clk 0:01:51]}  Qe5 {[%clk 0:01:28]} 27. Rd2 {[%clk 0:01:35]}  Bc8 {[%clk 0:01:22]} 28. Nh6 {[%clk 0:01:31]}  Rg7 {[%clk 0:01:22]} 29. Re1 {[%clk 0:01:30]}  Be6 {[%clk 0:01:10]} 30. Rdd1 {[%clk 0:01:21]}  Ng8 {[%clk 0:01:03]} 31. f4 {[%clk 0:01:14]}  Qf6 {[%clk 0:00:59]} 32. Qxf6 {[%clk 0:01:14]}  Nxf6 {[%clk 0:01:00]} 33. f5 {[%clk 0:00:53]}  Bxc4 {[%clk 0:00:47]} 34. Bxc4 {[%clk 0:00:49]}  Rxc4 {[%clk 0:00:43]} 35. e5 {[%clk 0:00:49]}  Ne4 {[%clk 0:00:41]} 36. f6 {[%clk 0:00:20]}  Nf2+ {[%clk 0:00:20]} 37. Kg1 {[%clk 0:00:20]}  Nh3+ {[%clk 0:00:20]} 38. Kh1 {[%clk 0:00:21]}  Nf2+ {[%clk 0:00:20]} 39. Kg1 {[%clk 0:00:21]}  Nh3+ {[%clk 0:00:20]} 40. Kf1 {[%clk 0:00:17]}  Rf4+ {[%clk 0:00:20]} 41. Ke2 {[%clk 0:00:17]}  Rxg2+ {[%clk 0:00:18]} 42. Ke3 {[%clk 0:00:18]}  exf6 {[%clk 0:00:15]} 43. exd6 {[%clk 0:00:15]}  Rgf2 {[%clk 0:00:10]} 44. d7 {[%clk 0:00:12]}  R2f3+ {[%clk 0:00:11]} 45. Kd2 {[%clk 0:00:09]}  Rd4+ {[%clk 0:00:10]} 46. Kc1 {[%clk 0:00:09]}  Rc3+ {[%clk 0:00:10]} 47. Kb2 {[%clk 0:00:08]}  Rcd3 {[%clk 0:00:10]} 48. Rxd3 {[%clk 0:00:07]}  Rxd3 {[%clk 0:00:11]} 49. Nxf7+ {[%clk 0:00:07]}  Kg7 {[%clk 0:00:11]} 50. d8=Q {[%clk 0:00:08]} 1-0


[Site "https://www.chess.com"]

[Event "Titled Tuesday Blitz August 3 2021"]
[White "Arabidze, Meri"]
[Black "Seletsky, Grigory"]
[WhiteFideId "13604040"]
[BlackFideId "14112191"]
[WhiteElo "2432"]
[BlackElo "2492"]
[Result "1-0"]
[Round "11"]
[TimeControl "180+1"]
[Date "2021.08.03"]
[WhiteClock "0:02:10"]
[BlackClock "0:00:53"]

1. Nf3 {[%clk 0:03:00]}  d6 {[%clk 0:02:59]} 2. d4 {[%clk 0:03:01]}  Nf6 {[%clk 0:02:58]} 3. g3 {[%clk 0:03:02]}  Bg4 {[%clk 0:02:58]} 4. Bg2 {[%clk 0:03:03]}  Bxf3 {[%clk 0:02:58]} 5. exf3 {[%clk 0:03:03]}  d5 {[%clk 0:02:58]} 6. O-O {[%clk 0:03:04]}  c6 {[%clk 0:02:58]} 7. f4 {[%clk 0:03:03]}  e6 {[%clk 0:02:57]} 8. c3 {[%clk 0:03:04]}  g6 {[%clk 0:02:56]} 9. Nd2 {[%clk 0:03:05]}  Bg7 {[%clk 0:02:56]} 10. Nf3 {[%clk 0:03:06]}  O-O {[%clk 0:02:57]} 11. Ne5 {[%clk 0:03:06]}  Nbd7 {[%clk 0:02:56]} 12. Qe2 {[%clk 0:03:03]}  a6 {[%clk 0:02:55]} 13. h4 {[%clk 0:03:00]}  h5 {[%clk 0:02:50]} 14. Bh3 {[%clk 0:03:00]}  c5 {[%clk 0:02:41]} 15. Be3 {[%clk 0:02:58]}  Rc8 {[%clk 0:02:39]} 16. Rad1 {[%clk 0:02:57]}  Qc7 {[%clk 0:02:34]} 17. Rfe1 {[%clk 0:02:56]}  b5 {[%clk 0:02:27]} 18. a3 {[%clk 0:02:39]}  c4 {[%clk 0:02:23]} 19. f3 {[%clk 0:02:35]}  a5 {[%clk 0:02:18]} 20. g4 {[%clk 0:02:36]}  hxg4 {[%clk 0:02:05]} 21. fxg4 {[%clk 0:02:37]}  b4 {[%clk 0:01:55]} 22. axb4 {[%clk 0:02:36]}  axb4 {[%clk 0:01:55]} 23. h5 {[%clk 0:02:35]}  bxc3 {[%clk 0:01:45]} 24. hxg6 {[%clk 0:02:32]}  Nxe5 {[%clk 0:01:42]} 25. fxe5 {[%clk 0:02:30]}  Ne4 {[%clk 0:01:42]} 26. g5 {[%clk 0:02:20]}  cxb2 {[%clk 0:01:36]} 27. Qh5 {[%clk 0:02:12]}  Ng3 {[%clk 0:00:53]} 28. Qh7# {[%clk 0:02:10]} 1-0


[Site "https://www.chess.com"]

[Event "Titled Tuesday Blitz August 3 2021"]
[White "Bach, Matthias"]
[Black "Pajeken, Jakob Leon"]
[WhiteFideId "4603168"]
[BlackFideId "12942839"]
[WhiteElo "2213"]
[BlackElo "2231"]
[Result "0-1"]
[Round "11"]
[TimeControl "180+1"]
[Date "2021.08.03"]
[WhiteClock "0:00:05"]
[BlackClock "0:00:19"]

1. d4 {[%clk 0:03:00]}  d5 {[%clk 0:02:58]} 2. c4 {[%clk 0:03:01]}  dxc4 {[%clk 0:02:58]} 3. Nf3 {[%clk 0:03:00]}  Nf6 {[%clk 0:02:56]} 4. Nc3 {[%clk 0:03:00]}  e6 {[%clk 0:02:57]} 5. e4 {[%clk 0:02:59]}  c5 {[%clk 0:02:56]} 6. Bxc4 {[%clk 0:02:51]}  cxd4 {[%clk 0:02:56]} 7. Qxd4 {[%clk 0:02:51]}  Qxd4 {[%clk 0:02:55]} 8. Nxd4 {[%clk 0:02:51]}  a6 {[%clk 0:02:54]} 9. f3 {[%clk 0:02:28]}  b5 {[%clk 0:02:51]} 10. Bb3 {[%clk 0:02:26]}  Nbd7 {[%clk 0:02:47]} 11. a4 {[%clk 0:02:12]}  b4 {[%clk 0:02:42]} 12. Nce2 {[%clk 0:02:07]}  Bb7 {[%clk 0:02:40]} 13. Be3 {[%clk 0:01:31]}  Bc5 {[%clk 0:02:31]} 14. Nc1 {[%clk 0:01:30]}  Ne5 {[%clk 0:02:27]} 15. Nc2 {[%clk 0:01:21]}  Be7 {[%clk 0:02:21]} 16. a5 {[%clk 0:01:12]}  O-O {[%clk 0:02:18]} 17. Kf2 {[%clk 0:01:06]}  Rfc8 {[%clk 0:02:14]} 18. Rd1 {[%clk 0:01:05]}  Nc4 {[%clk 0:01:57]} 19. Nd3 {[%clk 0:01:00]}  Rab8 {[%clk 0:01:44]} 20. Bxc4 {[%clk 0:00:31]}  Rxc4 {[%clk 0:01:42]} 21. Rac1 {[%clk 0:00:31]}  Rbc8 {[%clk 0:01:41]} 22. Na1 {[%clk 0:00:23]}  Rxc1 {[%clk 0:01:39]} 23. Rxc1 {[%clk 0:00:22]}  Rxc1 {[%clk 0:01:21]} 24. Nxc1 {[%clk 0:00:22]}  Nd7 {[%clk 0:01:07]} 25. Nab3 {[%clk 0:00:21]}  Ne5 {[%clk 0:01:05]} 26. Ke2 {[%clk 0:00:20]}  Bc6 {[%clk 0:01:01]} 27. Nd4 {[%clk 0:00:20]}  Bd7 {[%clk 0:00:58]} 28. Nd3 {[%clk 0:00:19]}  Nxd3 {[%clk 0:00:49]} 29. Kxd3 {[%clk 0:00:19]}  e5 {[%clk 0:00:49]} 30. Nf5 {[%clk 0:00:18]}  Bb5+ {[%clk 0:00:47]} 31. Kc2 {[%clk 0:00:18]}  Bf8 {[%clk 0:00:46]} 32. g3 {[%clk 0:00:17]}  g6 {[%clk 0:00:38]} 33. Nh4 {[%clk 0:00:16]}  Bf1 {[%clk 0:00:36]} 34. f4 {[%clk 0:00:15]}  Be7 {[%clk 0:00:29]} 35. Nf3 {[%clk 0:00:15]}  exf4 {[%clk 0:00:29]} 36. gxf4 {[%clk 0:00:13]}  h5 {[%clk 0:00:28]} 37. Nd2 {[%clk 0:00:11]}  Be2 {[%clk 0:00:25]} 38. Kb3 {[%clk 0:00:10]}  h4 {[%clk 0:00:22]} 39. Bd4 {[%clk 0:00:07]}  f5 {[%clk 0:00:19]} 40. exf5 {[%clk 0:00:06]}  gxf5 {[%clk 0:00:20]} 41. Be5 {[%clk 0:00:05]}  Kf7 {[%clk 0:00:19]} 0-1


[Site "https://www.chess.com"]

[Event "Titled Tuesday Blitz August 3 2021"]
[White "Baskin, Robert"]
[Black "Tomiello, Mateus Costamilan"]
[WhiteFideId "24662402"]
[BlackFideId "22701958"]
[WhiteElo "2462"]
[BlackElo "1995"]
[Result "1-0"]
[Round "11"]
[TimeControl "180+1"]
[Date "2021.08.03"]
[WhiteClock "0:00:39"]
[BlackClock "0:00:04"]

1. e4 {[%clk 0:03:00]}  e5 {[%clk 0:03:00]} 2. Nf3 {[%clk 0:03:00]}  Nc6 {[%clk 0:03:00]} 3. Bc4 {[%clk 0:03:00]}  Nf6 {[%clk 0:03:00]} 4. d4 {[%clk 0:02:58]}  exd4 {[%clk 0:03:00]} 5. e5 {[%clk 0:02:58]}  d5 {[%clk 0:03:00]} 6. Bb5 {[%clk 0:02:58]}  Ne4 {[%clk 0:03:00]} 7. Nxd4 {[%clk 0:02:57]}  Bd7 {[%clk 0:03:00]} 8. Bxc6 {[%clk 0:02:52]}  bxc6 {[%clk 0:03:01]} 9. O-O {[%clk 0:02:16]}  Bc5 {[%clk 0:03:00]} 10. Be3 {[%clk 0:02:14]}  Bb6 {[%clk 0:02:56]} 11. f3 {[%clk 0:02:10]}  Ng5 {[%clk 0:02:53]} 12. f4 {[%clk 0:02:07]}  Ne4 {[%clk 0:02:54]} 13. Nd2 {[%clk 0:02:05]}  Nxd2 {[%clk 0:02:50]} 14. Qxd2 {[%clk 0:02:05]}  Qe7 {[%clk 0:02:41]} 15. Nb3 {[%clk 0:01:56]}  Bf5 {[%clk 0:02:34]} 16. Rae1 {[%clk 0:01:51]}  O-O {[%clk 0:02:33]} 17. Qc3 {[%clk 0:01:47]}  Qe6 {[%clk 0:02:13]} 18. Bc5 {[%clk 0:01:43]}  Be4 {[%clk 0:01:55]} 19. Re3 {[%clk 0:01:34]}  Rfe8 {[%clk 0:01:38]} 20. Nd4 {[%clk 0:01:31]}  Qd7 {[%clk 0:01:30]} 21. Rg3 {[%clk 0:01:31]}  h5 {[%clk 0:01:07]} 22. Bxb6 {[%clk 0:01:01]}  axb6 {[%clk 0:01:06]} 23. f5 {[%clk 0:00:56]}  c5 {[%clk 0:00:43]} 24. e6 {[%clk 0:00:54]}  cxd4 {[%clk 0:00:20]} 25. Rxg7+ {[%clk 0:00:50]}  Kf8 {[%clk 0:00:11]} 26. Qg3 {[%clk 0:00:46]}  Rxe6 {[%clk 0:00:05]} 27. fxe6 {[%clk 0:00:43]}  Qxe6 {[%clk 0:00:05]} 28. Rg8+ {[%clk 0:00:38]}  Ke7 {[%clk 0:00:04]} 29. Qxc7+ {[%clk 0:00:39]} 1-0


[Site "https://www.chess.com"]

[Event "Titled Tuesday Blitz August 3 2021"]
[White "Bazarov, Konstantin"]
[Black "Galyas, Miklos"]
[WhiteFideId "4137000"]
[BlackFideId "707244"]
[WhiteElo "2190"]
[BlackElo "2409"]
[Result "0-1"]
[Round "11"]
[TimeControl "180+1"]
[Date "2021.08.03"]
[WhiteClock "0:00:24"]
[BlackClock "0:00:26"]

1. d4 {[%clk 0:03:00]}  d5 {[%clk 0:02:59]} 2. c4 {[%clk 0:03:00]}  c6 {[%clk 0:02:59]} 3. Nc3 {[%clk 0:03:01]}  Nf6 {[%clk 0:02:59]} 4. e3 {[%clk 0:03:00]}  a6 {[%clk 0:03:00]} 5. Nf3 {[%clk 0:03:01]}  Bf5 {[%clk 0:02:59]} 6. Nh4 {[%clk 0:02:56]}  Bg4 {[%clk 0:02:57]} 7. f3 {[%clk 0:02:55]}  Bc8 {[%clk 0:02:55]} 8. g4 {[%clk 0:02:52]}  e6 {[%clk 0:02:54]} 9. Ng2 {[%clk 0:02:48]}  c5 {[%clk 0:02:54]} 10. g5 {[%clk 0:02:46]}  cxd4 {[%clk 0:02:52]} 11. exd4 {[%clk 0:02:45]}  Nfd7 {[%clk 0:02:49]} 12. cxd5 {[%clk 0:02:39]}  exd5 {[%clk 0:02:49]} 13. h4 {[%clk 0:02:37]}  Nb6 {[%clk 0:02:46]} 14. Qb3 {[%clk 0:02:34]}  Nc6 {[%clk 0:02:45]} 15. Be3 {[%clk 0:02:31]}  Bd6 {[%clk 0:02:43]} 16. O-O-O {[%clk 0:02:27]}  Bf5 {[%clk 0:02:39]} 17. Bd3 {[%clk 0:02:24]}  Bxd3 {[%clk 0:02:35]} 18. Rxd3 {[%clk 0:02:23]}  O-O {[%clk 0:02:34]} 19. Kb1 {[%clk 0:02:13]}  Na5 {[%clk 0:02:30]} 20. Qd1 {[%clk 0:02:08]}  Nac4 {[%clk 0:02:29]} 21. Bc1 {[%clk 0:02:07]}  Rc8 {[%clk 0:02:28]} 22. h5 {[%clk 0:02:04]}  Qd7 {[%clk 0:02:27]} 23. Nh4 {[%clk 0:02:01]}  Bg3 {[%clk 0:02:12]} 24. g6 {[%clk 0:01:52]}  Bxh4 {[%clk 0:02:11]} 25. gxh7+ {[%clk 0:01:50]}  Kh8 {[%clk 0:02:10]} 26. Rxh4 {[%clk 0:01:51]}  Qf5 {[%clk 0:02:10]} 27. b3 {[%clk 0:01:37]}  Rfe8 {[%clk 0:02:08]} 28. Ka1 {[%clk 0:01:33]}  Nd6 {[%clk 0:02:02]} 29. Rh1 {[%clk 0:01:23]}  Re7 {[%clk 0:01:44]} 30. Ba3 {[%clk 0:01:21]}  Rec7 {[%clk 0:01:40]} 31. Ne2 {[%clk 0:01:11]}  Nb5 {[%clk 0:01:40]} 32. Bc5 {[%clk 0:01:10]}  Nd7 {[%clk 0:01:39]} 33. a4 {[%clk 0:01:02]}  Nxc5 {[%clk 0:01:32]} 34. dxc5 {[%clk 0:01:01]}  Qf6+ {[%clk 0:01:32]} 35. Ka2 {[%clk 0:00:58]}  Rxc5 {[%clk 0:01:31]} 36. Rd2 {[%clk 0:00:54]}  Nc3+ {[%clk 0:01:28]} 37. Nxc3 {[%clk 0:00:54]}  Rxc3 {[%clk 0:01:28]} 38. Re1 {[%clk 0:00:52]}  Rxf3 {[%clk 0:01:11]} 39. Rde2 {[%clk 0:00:51]}  Rcc3 {[%clk 0:01:06]} 40. Re8+ {[%clk 0:00:47]}  Kxh7 {[%clk 0:01:06]} 41. Qb1+ {[%clk 0:00:46]}  Qf5 {[%clk 0:01:04]} 42. Qxf5+ {[%clk 0:00:44]}  Rxf5 {[%clk 0:01:03]} 43. Rb1 {[%clk 0:00:45]}  Rc2+ {[%clk 0:01:00]} 44. Ka3 {[%clk 0:00:44]}  a5 {[%clk 0:00:59]} 45. Re7 {[%clk 0:00:43]}  Rff2 {[%clk 0:00:52]} 46. b4 {[%clk 0:00:40]}  Rc3+ {[%clk 0:00:47]} 47. Rb3 {[%clk 0:00:39]}  axb4+ {[%clk 0:00:47]} 48. Kxb4 {[%clk 0:00:38]}  Rc4+ {[%clk 0:00:47]} 49. Kb5 {[%clk 0:00:38]}  Rf5 {[%clk 0:00:47]} 50. Rxb7 {[%clk 0:00:36]}  Rxh5 {[%clk 0:00:46]} 51. a5 {[%clk 0:00:35]}  Rf4 {[%clk 0:00:39]} 52. a6 {[%clk 0:00:32]}  d4+ {[%clk 0:00:39]} 53. Kc4 {[%clk 0:00:30]}  Rf6 {[%clk 0:00:38]} 54. Ra3 {[%clk 0:00:29]}  Rhh6 {[%clk 0:00:35]} 55. Ra7 {[%clk 0:00:22]}  Rd6 {[%clk 0:00:30]} 56. Kc5 {[%clk 0:00:21]}  d3 {[%clk 0:00:30]} 57. Ra1 {[%clk 0:00:19]}  d2 {[%clk 0:00:29]} 58. Rd1 {[%clk 0:00:19]}  Rxa6 {[%clk 0:00:29]} 59. Rxa6 {[%clk 0:00:19]}  Rxa6 {[%clk 0:00:28]} 60. Rxd2 {[%clk 0:00:20]}  Re6 {[%clk 0:00:28]} 61. Kc4 {[%clk 0:00:21]}  g5 {[%clk 0:00:27]} 62. Rh2+ {[%clk 0:00:22]}  Kg6 {[%clk 0:00:27]} 63. Kd5 {[%clk 0:00:23]}  Re8 {[%clk 0:00:27]} 64. Rh8 {[%clk 0:00:24]}  Rxh8 {[%clk 0:00:26]} 0-1


[Site "https://www.chess.com"]